bitfinex/quotes_ETHUSD_20251230
["timestamp","ask_amount","ask_price","bid_price","bid_amount"]
[1767119293313,2.346,2974.1,2973.0,0.3132]
[1767119293539,0.001,2975.0,2973.0,0.3132]
[1767119293540,2.346,2973.9,2973.0,0.3132]
[1767119293844,2.346,2973.9,2973.3,0.3132]
[1767119294143,2.346,2974.9,2973.7,0.41342718]
[1767119294342,2.346,2974.9,2974.1,0.10022718]
[1767119294639,0.001,2975.0,2974.5,0.10022718]
[1767119294840,0.001,2975.2,2974.7,0.10022718]
[1767119295148,0.2357,2975.2,2974.7,0.10022718]
[1767119296645,2.57961398,2975.2,2974.5,3.6750875]
[1767119297140,0.884,2975.7,2974.7,0.3122]
[1767119297141,2.3019,2975.5,2974.7,0.3122]
[1767119297441,2.3019,2975.5,2974.9,0.3122]
[1767119297647,2.62049,2975.5,2974.9,0.3122]
[1767119299350,0.001,2974.9,2974.6,0.10022718]
[1767119299519,2.3019,2975.3,2974.6,0.10022718]
[1767119299717,2.3019,2975.3,2974.6,2.55372718]
[1767119299934,0.23019,2975.2,2974.9,3.36145749]
[1767119301166,2.3019,2975.3,2974.9,3.36145749]
[1767119301462,0.31859,2975.5,2974.8,2.4535]
[1767119301635,0.31859,2975.5,2974.7,3.36168353]
[1767119301636,0.31859,2975.5,2974.9,2.55372718]
[1767119302221,0.31859,2975.5,2974.9,2.4535]
[1767119302428,2.62049,2975.5,2974.9,2.4535]
[1767119302627,0.262049,2975.4,2974.9,2.4535]
[1767119303929,0.262049,2975.4,2975.0,3.36134453]
[1767119304635,2.3019,2975.3,2974.6,2.4535]
[1767119305028,0.262049,2975.4,2974.9,3.3614392]
[1767119305248,0.262049,2975.4,2974.9,5.8149392]
[1767119307837,0.262049,2975.4,2974.9,9.17639672]
[1767119308652,0.262049,2975.4,2975.0,2.4535]
[1767119308955,0.262049,2975.4,2975.1,3.36123155]
[1767119309337,0.262049,2975.4,2975.0,5.81479738]
[1767119309539,2.563949,2975.4,2974.9,3.36137089]
[1767119310155,2.563949,2975.4,2975.0,3.36129008]
[1767119310346,2.3019,2975.4,2975.0,3.36129008]
[1767119311757,2.3019,2975.4,2974.9,5.81495752]
[1767119312265,2.3019,2975.4,2974.9,9.17641504]
[1767119312634,2.3019,2975.4,2974.9,6.72291504]
[1767119312834,2.3029,2975.4,2975.0,2.4535]
[1767119313761,2.3029,2975.4,2975.1,3.36123155]
[1767119316838,0.001,2975.5,2975.1,3.36123155]
[1767119317868,0.001,2975.5,2975.1,5.81473155]
[1767119319873,0.001,2975.5,2975.1,2.4535]
[1767119320074,0.001,2976.1,2975.1,2.4535]
[1767119320075,0.001,2976.1,2975.2,2.4535]
[1767119320379,0.882,2975.9,2975.2,2.4535]
[1767119321865,0.882,2975.9,2975.3,5.81450561]
[1767119322758,0.882,2975.9,2975.4,2.4535]
[1767119324175,0.882,2975.9,2975.5,3.3607797]
[1767119324371,0.882,2975.9,2975.6,2.4535]
[1767119325592,0.001,2976.1,2975.7,2.4535]
[1767119325796,0.883,2976.1,2975.7,2.4535]
[1767119326096,0.883,2976.1,2975.5,8.9974594]
[1767119326492,0.001,2975.9,2975.5,8.9974594]
[1767119326694,0.001,2975.9,2975.3,2.2759]
[1767119327581,0.001,2976.1,2975.3,2.2759]
[1767119327773,0.001,2976.1,2975.3,2.37612718]
[1767119329003,0.001,2976.1,2975.5,2.2759]
[1767119331080,0.001,2976.1,2975.7,2.2759]
[1767119331289,0.884,2976.1,2975.7,2.2759]
[1767119331488,0.883,2976.5,2975.7,2.2759]
[1767119331795,0.884,2976.6,2975.7,2.37612718]
[1767119333167,0.884,2976.6,2975.8,6.72088176]
[1767119333373,0.883,2976.4,2975.7,4.24249907]
[1767119333692,0.883,2976.4,2975.7,7.60305288]
[1767119333898,0.883,2976.4,2975.8,2.2759]
[1767119336085,0.883,2976.4,2976.0,2.2759]
[1767119337303,0.883,2976.4,2975.9,3.36032796]
[1767119337600,0.883,2976.4,2975.9,5.63622796]
[1767119339198,0.883,2976.4,2975.9,8.99655592]
[1767119339422,0.883,2976.4,2976.0,2.2759]
[1767119342000,0.883,2976.4,2976.0,5.63603508]
[1767119342876,0.883,2976.4,2975.8,3.1579]
[1767119343079,0.883,2976.4,2975.6,0.002]
[1767119343275,0.04199845,2976.3,2975.6,0.002]
[1767119343480,0.80194422,2976.3,2975.6,0.002]
[1767119343689,0.04199845,2976.3,2975.6,0.002]
[1767119344184,0.04199704,2976.4,2975.6,0.002]
[1767119345008,0.882,2976.5,2975.6,0.002]
[1767119345195,0.04199704,2976.4,2975.6,0.002]
[1767119346509,0.882,2976.5,2975.6,0.002]
[1767119346718,0.882,2976.4,2975.6,2.3255]
[1767119347929,0.04199845,2976.3,2975.6,2.3255]
[1767119348114,0.04299422,2976.6,2975.6,2.64625]
[1767119348289,0.001,2976.6,2975.6,2.64625]
[1767119348494,0.04199563,2976.5,2975.7,2.3235]
[1767119348990,0.001,2976.6,2975.7,2.3235]
[1767119351738,0.04299422,2976.6,2975.8,5.68394088]
[1767119352295,0.04299422,2976.6,2975.8,9.04438176]
[1767119352695,0.04299422,2976.6,2975.8,6.72088176]
[1767119352995,0.04299422,2976.6,2975.9,2.3235]
[1767119353219,0.001,2976.6,2975.9,2.3235]
[1767119354025,0.001,2976.6,2976.0,9.0439301]
[1767119354622,0.001,2976.6,2976.0,5.68371505]
[1767119355318,0.001,2976.6,2976.0,3.36021505]
[1767119355513,0.001,2976.6,2976.1,2.3235]
[1767119357492,0.001,2976.6,2976.1,5.68356878]
[1767119357696,0.001,2976.6,2976.1,2.3235]
[1767119358725,0.001,2976.6,2975.8,0.882]
[1767119358924,5.92528562,2976.5,2975.6,5.82010292]
[1767119359220,5.92528562,2976.5,2975.7,2.4575]
[1767119359408,0.58083952,2976.5,2975.7,2.4575]
[1767119360814,0.53884389,2976.5,2975.7,2.4575]
[1767119361018,0.001,2976.6,2975.7,2.4575]
[1767119361202,0.001,2976.6,2975.9,2.4575]
[1767119361596,0.04299422,2976.6,2975.9,2.4575]
[1767119363423,0.001,2976.6,2976.1,2.4575]
[1767119365330,0.001,2976.6,2976.3,2.4575]
[1767119367339,0.001,2976.6,2976.3,5.81733678]
[1767119380639,0.001,2976.6,2976.3,2.4575]
[1767119380943,0.001,2976.6,2976.2,3.35994721]
[1767119381441,0.001,2976.6,2976.2,5.81744721]
[1767119382043,0.001,2976.6,2976.1,2.4575]
[1767119383232,0.001,2976.6,2976.2,3.35998924]
[1767119384541,0.882,2977.3,2976.2,3.35998924]
[1767119384742,0.54451347,2977.2,2976.2,3.35998924]
[1767119387519,0.54451347,2977.2,2976.1,5.81755765]
[1767119388284,6.22802912,2977.3,2976.1,9.17765979]
[1767119388441,6.22802912,2977.3,2976.2,2.2833]
[1767119389657,6.22802912,2977.3,2976.2,5.64321173]
[1767119393850,6.22802912,2977.3,2976.0,2.2833]
[1767119394562,0.001,2977.3,2976.0,2.2833]
[1767119394750,0.53560291,2977.3,2976.0,2.2833]
[1767119395057,0.001,2977.3,2976.0,2.2833]
[1767119395955,0.001,2977.3,2976.2,2.2833]
[1767119396163,0.001,2977.3,2976.4,2.2833]
[1767119396362,0.04298434,2977.3,2976.4,2.2833]
[1767119398635,0.04298434,2977.3,2976.4,5.64302849]
[1767119400287,0.04298434,2977.3,2976.4,2.2833]
[1767119400758,0.04298434,2977.3,2976.4,5.64306039]
[1767119400966,0.04298434,2977.3,2976.5,2.3498]
[1767119402772,0.04298434,2977.3,2976.3,6.59162492]
[1767119403158,0.04298434,2977.3,2976.3,4.24182492]
[1767119403558,0.001,2977.3,2976.4,2.3498]
[1767119404260,0.001,2977.3,2976.4,2.45002718]
[1767119404569,0.001,2977.3,2976.7,2.3498]
[1767119404772,0.001,2977.3,2977.0,3.35908632]
[1767119405075,0.001,2977.3,2977.1,2.3498]
[1767119410657,0.001,2977.3,2977.0,3.35908632]
[1767119410953,0.001,2977.3,2975.9,0.10222718]
[1767119410954,5.38801346,2977.3,2976.4,2.3498]
[1767119411279,0.53890135,2977.2,2976.4,4.24174526]
[1767119411655,0.53890135,2977.2,2976.4,6.59154526]
[1767119411855,0.04198716,2977.1,2976.4,4.24174526]
[1767119412079,0.53890135,2977.2,2976.4,4.24174526]
[1767119412278,0.53890135,2977.2,2976.4,9.95130873]
[1767119412584,0.001,2977.3,2976.4,9.95130873]
[1767119413356,0.001,2977.3,2976.4,6.59154526]
[1767119413856,0.001,2977.3,2976.5,2.3498]
[1767119415354,0.001,2977.3,2976.5,5.70935065]
[1767119419488,5.38801346,2977.3,2976.4,0.882]
[1767119419665,5.34502912,2976.7,2975.9,6.60416153]
[1767119420060,5.34502912,2976.7,2975.9,3.2439]
[1767119420482,5.34502912,2976.7,2975.9,0.884]
[1767119421171,0.04199422,2976.6,2975.9,0.884]
[1767119421372,0.04199422,2976.6,2976.5,0.002]
[1767119421578,0.04199422,2976.6,2975.9,0.002]
[1767119421579,4.27617106,2976.6,2975.9,0.002]
[1767119422963,0.91662779,2976.6,2975.9,0.002]
[1767119423285,6.71794698,2977.1,2975.9,2.3619]
[1767119423862,3.35897349,2977.1,2975.9,2.3619]
[1767119424067,0.04198857,2977.0,2975.9,2.3619]
[1767119424488,0.001,2977.3,2976.8,5.34045449]
[1767119424694,0.001,2977.3,2977.0,2.3599]
[1767119424995,0.001,2977.3,2977.0,5.71897266]
[1767119425695,0.001,2977.3,2977.1,2.3599]
[1767119426201,0.001,2977.7,2977.1,2.3599]
[1767119427289,0.001,2977.7,2977.2,2.3599]
[1767119428891,0.001,2977.8,2977.1,3.3588708]
[1767119428892,0.001,2977.8,2977.4,2.3599]
[1767119429093,0.001,2977.8,2977.5,2.3599]
[1767119429267,0.001,2977.8,2977.5,5.71838864]
[1767119429469,0.001,2977.8,2976.2,2.3599]
[1767119429470,5.34045449,2977.6,2976.2,2.3599]
[1767119429684,5.34045449,2976.9,2976.2,2.3599]
[1767119429889,0.0419914,2976.8,2976.2,2.3599]
[1767119430994,0.0419914,2976.8,2976.1,6.6019923]
[1767119431190,0.0419914,2976.8,2976.2,3.35997828]
[1767119431391,0.0419914,2976.8,2976.1,6.60198614]
[1767119432497,0.04198293,2977.4,2976.1,6.60198614]
[1767119432993,0.39345509,2977.3,2976.1,3.2419]
[1767119433168,0.04198575,2977.2,2976.1,3.2419]
[1767119434181,0.04198716,2977.1,2976.1,3.2419]
[1767119434588,0.04198716,2977.1,2976.2,2.3599]
[1767119434791,0.53404545,2977.5,2976.2,2.3599]
[1767119435802,0.53404545,2977.5,2976.3,3.35987635]
[1767119436005,0.53404545,2977.5,2976.4,2.3599]
[1767119436702,0.001,2977.2,2976.4,2.3599]
[1767119436898,0.001,2977.2,2976.3,6.7197527]
[1767119437083,0.001,2977.2,2976.4,2.3599]
[1767119437803,0.001,2977.2,2976.5,3.35965059]
[1767119437976,0.001,2977.2,2976.7,2.3599]
[1767119439193,0.001,2977.2,2976.7,0.882]
[1767119443312,0.001,2977.2,2975.8,3.36036701]
[1767119443479,0.04298575,2977.2,2976.2,5.71983513]
[1767119444187,0.001,2977.2,2976.7,2.3599]
[1767119447406,0.001,2977.2,2976.7,5.71929394]
[1767119447624,0.001,2977.2,2976.8,2.3125]
[1767119450898,0.001,2977.2,2976.5,2.3125]
[1767119451219,0.001,2977.2,2976.6,0.882]
[1767119452788,0.04298575,2977.2,2976.6,0.882]
[1767119453110,0.58157999,2977.2,2976.6,0.882]
[1767119453693,0.58157999,2977.2,2976.5,2.3125]
[1767119453893,0.58157999,2977.2,2976.6,0.882]
[1767119455094,0.53959424,2977.2,2976.6,0.882]
[1767119455991,0.53959424,2977.2,2976.4,3.36170618]
[1767119455992,5.3429567,2977.0,2976.4,0.002]
[1767119456197,5.38494527,2977.0,2976.4,0.002]
[1767119456597,0.04198857,2977.0,2976.4,3.36174815]
[1767119457125,0.04198857,2977.0,2976.4,0.002]
[1767119457332,0.04198716,2977.1,2976.4,0.002]
[1767119457630,0.58058155,2977.1,2976.4,0.002]
[1767119457802,0.53859439,2977.1,2976.4,2.3145]
[1767119458008,0.53859439,2977.1,2976.5,3.35963797]
[1767119459528,0.001,2977.2,2976.4,5.67420985]
[1767119459744,0.001,2977.2,2976.4,5.73120985]
[1767119460046,0.001,2977.2,2976.4,3.36170985]
[1767119460215,0.001,2977.2,2976.5,2.3695]
[1767119463248,0.001,2977.2,2976.5,5.72914025]
[1767119463819,0.001,2977.2,2976.6,2.3695]
[1767119470333,5.3429567,2976.8,2976.5,0.002]
[1767119470539,0.04199281,2976.7,2976.0,5.72964354]
[1767119471962,0.04199281,2976.7,2976.1,3.3600848]
[1767119472263,5.3429567,2976.8,2976.1,5.7295848]
[1767119472264,0.0419914,2976.8,2976.1,5.7295848]
[1767119472422,0.04198998,2976.9,2976.1,5.7295848]
[1767119472623,0.53849467,2976.8,2976.1,5.7295848]
[1767119473959,0.53849467,2976.8,2976.1,2.3695]
[1767119475280,0.53849467,2976.8,2976.1,5.72955925]
[1767119486689,0.04198998,2976.9,2976.1,5.72955925]
[1767119487302,0.04198857,2977.0,2976.1,5.72955925]
[1767119487664,0.04198857,2977.0,2976.1,3.36005925]
[1767119487863,0.04198857,2977.0,2976.2,2.3002]
[1767119495287,0.04198857,2977.0,2976.2,5.66018632]
[1767119495487,0.87458081,2976.9,2976.2,5.66018632]
[1767119495699,3.35988898,2977.2,2976.2,5.66018632]
[1767119496101,0.001,2977.2,2976.3,2.3002]
[1767119496395,0.001,2977.2,2976.6,2.3002]
[1767119496773,0.001,2977.2,2976.5,5.34483876]
[1767119497110,0.001,2977.2,2976.6,2.3002]
[1767119497317,0.001,2977.8,2976.8,2.3002]
[1767119497520,0.001,2977.7,2977.0,2.3002]
[1767119499316,0.001,2977.8,2977.2,2.3002]
[1767119499636,0.002,2978.0,2977.7,2.3002]
[1767119499815,0.002,2978.0,2977.6,0.882]
[1767119500302,0.04197447,2978.0,2977.1,2.3002]
[1767119500720,0.04197447,2978.0,2977.2,0.882]
[1767119500948,0.34008387,2977.9,2977.2,0.882]
[1767119502419,0.04197447,2978.0,2977.2,3.1822]
[1767119502609,0.04197447,2978.0,2977.2,0.882]
[1767119502793,0.04197447,2978.0,2977.2,3.1822]
[1767119503811,3.35807112,2977.9,2977.2,0.882]
[1767119504006,5.38681605,2977.8,2977.0,2.3002]
[1767119504207,0.87448872,2977.7,2977.0,3.1822]
[1767119504606,0.04197588,2977.9,2977.1,2.3002]
[1767119504812,0.04297588,2977.9,2977.1,2.3002]
[1767119506925,3.40105771,2977.9,2977.1,2.3002]
[1767119507124,3.40105771,2977.9,2977.0,0.882]
[1767119508127,6.75913954,2977.9,2977.0,0.882]
[1767119508446,4.03411302,2977.8,2977.0,0.882]
[1767119508616,0.0419787,2977.7,2977.0,0.882]
[1767119510801,5.34483876,2977.5,2976.3,2.3047]
[1767119510999,0.04198293,2977.4,2976.4,4.24168532]
[1767119511199,0.04198293,2977.4,2976.5,2.72886853]
[1767119511602,0.04198293,2977.4,2976.6,2.3047]
[1767119512129,6.2571451,2977.5,2976.6,2.3047]
[1767119512334,0.91230634,2977.5,2976.6,2.3047]
[1767119512531,0.42707158,2977.4,2976.6,2.3047]
[1767119512831,0.42707158,2977.4,2976.6,2.3067]
[1767119513231,3.78577142,2977.4,2976.6,2.3067]
[1767119513830,0.04198434,2977.3,2976.6,2.3067]
[1767119514132,3.82775435,2977.4,2976.6,2.3067]
[1767119518136,3.78577142,2977.4,2976.6,2.3067]
[1767119518535,5.72761405,2977.3,2976.2,2.3047]
[1767119518835,0.04198575,2977.2,2976.3,3.1867]
[1767119519040,0.04198575,2977.2,2976.4,2.3047]
[1767119520436,3.40093175,2977.2,2976.4,2.3047]
[1767119520639,0.3783707,2977.1,2976.4,2.3047]
[1767119521537,0.3783707,2977.1,2976.4,2.3067]
[1767119522314,3.74156012,2977.3,2976.4,2.3067]
[1767119522515,3.40090243,2977.2,2976.4,2.3067]
[1767119523029,3.35891668,2977.2,2976.4,2.3067]
[1767119523732,3.74158591,2977.3,2976.4,2.3067]
[1767119527139,5.34483876,2976.7,2976.0,0.002]
[1767119527308,5.34483876,2976.3,2975.6,0.002]
[1767119527513,5.34483876,2976.3,2975.3,0.884]
[1767119527514,5.34483876,2976.0,2975.3,0.884]
[1767119527813,5.34483876,2976.0,2975.3,0.002]
[1767119528443,5.34483876,2976.3,2975.3,0.002]
[1767119528616,0.53448388,2976.2,2975.3,0.002]
[1767119529045,3.36010214,2976.1,2975.3,0.002]
[1767119529440,3.36010214,2976.1,2975.5,0.002]
[1767119530113,0.53448388,2976.2,2975.5,2.3983]
[1767119530318,3.89449078,2976.2,2975.5,2.3983]
[1767119530517,0.38944908,2976.1,2975.5,2.3983]
[1767119531739,3.74956533,2976.1,2975.5,0.002]
[1767119532331,7.10968158,2976.1,2975.5,0.002]
[1767119533123,3.74956533,2976.1,2975.5,0.002]
[1767119533746,3.7915666,2976.1,2975.5,0.002]
[1767119533945,0.71515836,2976.0,2975.5,0.002]
[1767119534747,0.71515836,2976.0,2975.5,2.3983]
[1767119535049,6.76175115,2976.3,2975.5,2.3983]
[1767119535542,6.76175115,2976.3,2975.5,0.002]
[1767119536241,3.4018748,2976.3,2975.5,0.002]
[1767119536445,3.35987635,2976.3,2975.5,2.4553]
[1767119537147,3.36087635,2976.3,2975.5,2.4553]
[1767119537331,0.6720669,2976.2,2975.5,2.4553]
[1767119537644,4.03206987,2976.2,2975.5,2.4553]
[1767119537842,0.04200127,2976.1,2975.5,0.002]
[1767119538017,4.03209222,2976.2,2975.5,0.002]
[1767119539043,4.03209222,2976.2,2975.5,2.4553]
[1767119539341,0.6720669,2976.2,2975.5,2.4553]
[1767119541345,0.001,2976.3,2975.5,2.4553]
[1767119541517,0.001,2976.3,2975.6,2.4533]
[1767119541723,0.001,2976.3,2975.7,0.882]
[1767119541919,0.001,2976.3,2975.8,0.882]
[1767119542739,0.001,2976.3,2975.8,3.3353]
[1767119544651,0.001,2976.3,2975.8,0.882]
[1767119544833,0.001,2976.3,2975.8,3.3353]
[1767119548052,0.001,2976.3,2975.8,2.4533]
[1767119548227,0.001,2976.3,2975.8,3.3353]
[1767119550251,5.34651225,2976.3,2975.6,0.882]
[1767119550450,0.53465122,2976.2,2975.6,0.882]
[1767119550762,5.34551225,2976.1,2975.5,0.002]
[1767119551853,0.53465122,2976.2,2975.5,0.002]
[1767119552227,3.89465874,2976.2,2975.5,0.002]
[1767119553662,0.53465122,2976.2,2975.6,2.4533]
[1767119553950,0.001,2976.3,2975.6,2.4533]
[1767119555942,0.001,2976.3,2975.6,3.36066614]
[1767119556136,0.001,2976.3,2975.7,2.4533]
[1767119556448,0.001,2976.3,2975.9,2.4533]
[1767119558061,0.001,2976.6,2975.9,2.4533]
[1767119558254,3.35882191,2977.3,2976.4,2.4533]
[1767119558255,0.001,2977.3,2976.4,2.4533]
[1767119558444,0.001,2977.3,2976.5,2.4533]
[1767119558930,5.34651225,2977.3,2976.5,2.4533]
[1767119559258,0.001,2977.2,2976.5,2.4533]
[1767119559435,0.001,2977.1,2976.5,2.4533]
[1767119560635,0.001,2977.0,2976.5,2.4533]
[1767119563256,0.001,2977.3,2976.6,2.4533]
[1767119566646,0.001,2977.3,2976.7,2.4657]
[1767119567467,0.04198434,2977.3,2976.7,2.4657]
[1767119567769,0.001,2977.2,2976.7,2.4657]
[1767119568150,0.001,2977.0,2976.5,2.4657]
[1767119568350,0.001,2977.0,2976.4,0.882]
[1767119569044,0.001,2977.0,2976.4,3.3477]
[1767119570951,5.34551225,2977.0,2976.2,2.4657]
[1767119571153,5.38750082,2977.0,2976.2,0.882]
[1767119571874,8.74663016,2977.0,2976.2,0.882]
[1767119572174,8.70464159,2977.0,2976.2,0.882]
[1767119574557,8.70464159,2977.0,2976.1,2.4657]
[1767119576378,8.70564159,2977.0,2976.1,2.4657]
[1767119576579,1.20646308,2976.9,2976.1,2.4657]
[1767119580146,4.56574346,2976.9,2976.1,2.4657]
[1767119581982,1.20646308,2976.9,2976.1,2.4657]
[1767119582290,1.20646308,2976.9,2976.3,2.4657]
[1767119582585,3.3601773,2977.0,2976.3,2.4657]
[1767119584568,0.001,2977.0,2976.3,2.4657]
[1767119585472,5.34651225,2977.0,2976.2,0.882]
[1767119585673,5.34551225,2976.8,2976.1,0.884]
[1767119585868,0.58074303,2976.7,2976.1,0.884]
[1767119586288,0.53875022,2976.7,2976.1,0.002]
[1767119586589,0.53875022,2976.7,2976.1,0.884]
[1767119586590,3.94019921,2976.7,2976.1,0.884]
[1767119587469,0.58074303,2976.7,2976.1,0.884]
[1767119587679,0.53875022,2976.7,2976.1,0.884]
[1767119588297,0.53875022,2976.7,2976.1,0.002]
[1767119588465,0.53875022,2976.7,2976.1,0.884]
[1767119588661,3.35935424,2976.8,2976.1,0.884]
[1767119588870,3.35920169,2976.9,2976.1,2.4939]
[1767119589071,3.35920169,2976.9,2976.1,3.3759]
[1767119589595,3.35920169,2976.9,2976.2,2.4919]
[1767119590573,3.36019406,2977.0,2976.2,2.4919]
[1767119590773,0.001,2977.0,2976.2,7.83741225]
[1767119591002,0.001,2977.0,2976.3,2.4919]
[1767119605008,0.001,2977.0,2976.4,2.4943]
[1767119607623,0.001,2977.0,2976.1,0.002]
[1767119607903,5.34551225,2976.9,2976.1,2.4963]
[1767119608210,0.34118932,2977.0,2976.1,2.4963]
[1767119609908,3.35919916,2976.9,2976.1,2.4963]
[1767119611690,3.70032566,2977.0,2976.1,2.4963]
[1767119613110,7.059462,2977.0,2976.1,2.4963]
[1767119613275,0.7059462,2976.9,2976.1,2.4963]
[1767119613779,3.36013634,2977.0,2976.1,2.4963]
[1767119614209,0.001,2977.0,2976.1,2.4963]
[1767119619724,0.002,2977.9,2976.8,2.4943]
[1767119619890,0.002,2977.9,2977.2,2.4943]
[1767119619891,0.004,2977.8,2977.2,2.4943]
[1767119620212,0.003,2977.7,2977.2,2.4943]
[1767119622628,5.34415586,2977.7,2977.1,0.879]
[1767119623130,3.35833863,2977.7,2977.1,0.879]
[1767119624602,3.35933863,2977.7,2977.1,0.879]
[1767119625001,0.001,2977.7,2977.1,0.879]
[1767119625301,0.34131598,2977.7,2977.1,0.879]
[1767119626501,5.68547184,2977.7,2976.4,2.4278]
[1767119626701,5.34415586,2977.4,2976.4,2.4278]
[1767119627130,8.70285687,2977.4,2976.5,0.882]
[1767119627312,9.91318829,2977.4,2976.5,3.3098]
[1767119627829,4.56903243,2977.4,2976.5,3.3098]
[1767119629901,0.04198434,2977.3,2976.5,3.3098]
[1767119630102,0.04198434,2977.3,2976.3,2.4298]
[1767119630311,8.70285687,2977.4,2976.4,0.882]
[1767119630499,1.20614133,2977.3,2976.4,0.882]
[1767119630700,1.20614133,2977.3,2976.4,3.3098]
[1767119632328,4.56492338,2977.3,2976.4,3.3098]
[1767119639646,7.92370543,2977.3,2976.4,0.882]
[1767119640133,4.56492338,2977.3,2976.4,0.882]
[1767119640352,0.79245858,2977.2,2976.4,3.3515]
[1767119641047,0.79245858,2977.2,2976.4,2.4695]
[1767119641210,0.79245858,2977.2,2976.5,0.882]
[1767119641411,0.79245858,2977.2,2976.5,3.3515]
[1767119641924,4.15134595,2977.2,2976.6,0.882]
[1767119642320,4.15134595,2977.2,2976.5,2.4695]
[1767119642743,0.79245858,2977.2,2976.5,3.3515]
[1767119642949,0.79245858,2977.2,2976.6,0.882]
[1767119643910,0.79245858,2977.2,2976.5,2.4695]
[1767119644111,0.79245858,2977.2,2976.6,0.882]
[1767119644461,0.79245858,2977.2,2976.5,2.4695]
[1767119644627,3.35975093,2977.3,2976.5,2.4695]
[1767119644815,3.35975093,2977.3,2976.6,0.882]
[1767119645420,0.001,2977.4,2976.8,2.4695]
[1767119645818,3.35966416,2977.4,2976.8,2.4695]
[1767119646015,0.001,2977.4,2976.8,2.4695]
[1767119648233,0.001,2977.4,2976.9,0.882]
[1767119651752,0.001,2977.4,2976.9,3.3515]
[1767119652087,0.34131598,2977.7,2976.9,3.3515]
[1767119652088,0.001,2977.7,2977.0,5.34415586]
[1767119652247,0.001,2977.6,2977.1,2.4695]
[1767119652434,0.001,2977.6,2976.9,2.80485]
[1767119652636,0.001,2977.6,2977.2,0.881]
[1767119654969,0.001,2977.6,2976.8,2.4715]
[1767119655273,3.35930049,2977.7,2976.9,3.3515]
[1767119656970,0.001,2977.7,2977.0,0.882]
[1767119658766,0.001,2977.6,2977.0,0.882]
[1767119658969,0.04298011,2977.6,2976.8,0.002]
[1767119659264,1.21047293,2977.5,2976.8,0.884]
[1767119659562,5.34415586,2977.4,2976.8,0.002]
[1767119660953,3.35874785,2977.3,2976.8,0.002]
[1767119662075,6.7174957,2977.3,2976.8,0.002]
[1767119662239,1.20616516,2977.2,2976.8,0.002]
[1767119662985,4.56505876,2977.2,2976.8,0.002]
[1767119666174,1.20616516,2977.2,2976.8,0.002]
[1767119666395,3.35863505,2977.4,2976.8,0.002]
[1767119666887,0.001,2977.2,2976.8,0.002]
[1767119671158,5.3445149,2977.2,2976.8,0.002]
[1767119673608,3.35897349,2977.1,2976.8,0.002]
[1767119674283,3.35991219,2977.2,2976.8,0.002]
[1767119674483,0.67187336,2977.1,2976.8,0.002]
[1767119679871,0.001,2977.2,2976.8,0.002]
[1767119680189,0.001,2977.2,2976.8,2.4481]
[1767119684195,0.001,2977.2,2976.9,3.3281]
[1767119686178,0.001,2977.2,2976.9,0.882]
[1767119686383,0.001,2977.2,2976.9,3.1601]
[1767119686883,0.001,2977.2,2977.0,2.2781]
[1767119689804,3.35940945,2977.6,2977.1,2.2781]
[1767119690186,0.001,2977.5,2977.1,2.2781]
[1767119691007,0.001,2977.2,2977.1,2.2781]
[1767119691301,3.35940945,2977.6,2977.1,2.2781]
[1767119691302,0.001,2977.6,2977.1,2.2781]
[1767119691508,0.001,2977.5,2977.1,2.2781]
[1767119695218,0.001,2977.5,2976.8,0.002]
[1767119695387,0.001,2977.5,2976.9,0.882]
[1767119696605,0.001,2977.5,2976.9,6.2255149]
[1767119696813,0.001,2977.5,2976.9,8.5036149]
[1767119697510,0.001,2977.5,2976.9,7.6216149]
[1767119697718,0.001,2977.5,2977.0,0.882]
[1767119698614,0.001,2977.4,2977.0,0.882]
[1767119699812,0.001,2977.5,2977.0,0.882]
[1767119699813,0.001,2977.5,2977.1,2.3612]
[1767119700024,0.001,2977.4,2977.0,0.882]
[1767119700327,0.001,2977.4,2977.0,0.881]
[1767119700816,0.001,2977.4,2976.8,0.002]
[1767119707019,0.001,2977.4,2976.8,0.884]
[1767119708229,0.001,2977.4,2976.8,1.20852]
[1767119710843,0.001,2977.4,2976.8,3.56972]
[1767119711506,0.001,2977.5,2977.0,2.3612]
[1767119723855,0.001,2977.8,2977.5,2.3582]
[1767119724056,0.001,2977.8,2976.9,0.882]
[1767119724057,3.35892107,2978.1,2976.9,2.3582]
[1767119724231,3.35892107,2978.1,2977.2,2.3582]
[1767119724633,0.04197447,2978.0,2977.3,0.882]
[1767119724936,6.71684214,2978.1,2977.3,0.882]
[1767119725336,12.06035704,2978.1,2976.9,7.7017149]
[1767119725662,5.3435149,2977.9,2977.0,0.882]
[1767119726633,6.71614224,2977.9,2977.0,0.882]
[1767119727462,6.71614224,2977.9,2977.0,3.2402]
[1767119729463,12.05965714,2977.9,2977.0,3.2402]
[1767119729766,5.3435149,2977.5,2976.8,0.884]
[1767119729932,0.04198293,2977.4,2976.8,0.884]
[1767119730128,5.3435149,2977.5,2976.8,0.884]
[1767119730331,5.3854936,2977.7,2976.8,0.884]
[1767119730573,0.0419787,2977.7,2976.8,0.884]
[1767119731069,5.34234552,2977.4,2976.3,0.002]
[1767119731234,0.53423455,2977.3,2976.4,2.3582]
[1767119731645,6.7168189,2977.6,2976.4,2.3582]
[1767119732736,6.75879901,2977.6,2976.4,2.3582]
[1767119732945,10.11720846,2977.6,2976.4,2.3582]
[1767119733146,10.07522835,2977.6,2976.4,2.3582]
[1767119734160,6.7168189,2977.6,2976.4,2.3582]